[Event "*** Titled Tuesday Blitz"]
[Site "Chess.com"]
[Date "2020.11.03"]
[Round "8"]
[White "RaunakSadhwani2005"]
[Black "KuzubovYuriy"]
[Result "1-0"]
[WhiteElo "2975"]
[BlackElo "2840"]
[TimeControl "180+1"]
[EndTime "11:32:07 PST"]
[Termination "RaunakSadhwani2005 won on time"]

1. c4 {[%clk 0:03:00.5]} 1... e5 {[%clk 0:02:58]} 2. Nc3 {[%clk 0:02:56.7]} 2...
Bb4 {[%clk 0:02:56.5]} 3. Nd5 {[%clk 0:02:48.4]} 3... Bc5 {[%clk 0:02:55.7]} 4.
e3 {[%clk 0:02:46.5]} 4... Nf6 {[%clk 0:02:46.2]} 5. Nf3 {[%clk 0:02:42.9]} 5...
Nxd5 {[%clk 0:02:35.7]} 6. cxd5 {[%clk 0:02:37.4]} 6... d6 {[%clk 0:02:30.3]} 7.
d4 {[%clk 0:02:27.7]} 7... Bb4+ {[%clk 0:02:30]} 8. Bd2 {[%clk 0:02:25.7]} 8...
Bxd2+ {[%clk 0:02:29]} 9. Qxd2 {[%clk 0:02:26.6]} 9... e4 {[%clk 0:02:27.7]} 10.
Ng1 {[%clk 0:02:26.6]} 10... Nd7 {[%clk 0:02:25.3]} 11. Ne2 {[%clk 0:02:26.4]}
11... Nf6 {[%clk 0:02:20.4]} 12. Nc3 {[%clk 0:02:22.2]} 12... O-O {[%clk
0:02:20]} 13. Be2 {[%clk 0:02:19.1]} 13... Bf5 {[%clk 0:02:15]} 14. Rg1 {[%clk
0:02:13]} 14... h5 {[%clk 0:01:56.4]} 15. h3 {[%clk 0:02:09.1]} 15... h4 {[%clk
0:01:54.2]} 16. g4 {[%clk 0:02:06.1]} 16... Bg6 {[%clk 0:01:44.8]} 17. O-O-O
{[%clk 0:02:02.3]} 17... Nh7 {[%clk 0:01:44]} 18. f4 {[%clk 0:01:59.4]} 18...
exf3 {[%clk 0:01:43.4]} 19. Bxf3 {[%clk 0:01:59.9]} 19... Ng5 {[%clk 0:01:43.6]}
20. Bg2 {[%clk 0:01:57.7]} 20... Re8 {[%clk 0:01:41.7]} 21. Qf2 {[%clk 0:01:54]}
21... Be4 {[%clk 0:01:14.2]} 22. Bf1 {[%clk 0:01:46.5]} 22... c6 {[%clk
0:01:10.1]} 23. dxc6 {[%clk 0:01:38.8]} 23... bxc6 {[%clk 0:01:10.1]} 24. Qxh4
{[%clk 0:01:36]} 24... Qa5 {[%clk 0:00:45.8]} 25. Qf2 {[%clk 0:01:33.1]} 25...
Bd5 {[%clk 0:00:33.8]} 26. Bd3 {[%clk 0:01:21]} 26... Rab8 {[%clk 0:00:20.3]}
27. Qf5 {[%clk 0:01:06.7]} 27... f6 {[%clk 0:00:16.8]} 28. e4 {[%clk 0:00:55.2]}
28... Qb4 {[%clk 0:00:15.1]} 29. Rg2 {[%clk 0:00:52.2]} 29... Bf7 {[%clk
0:00:14.2]} 30. h4 {[%clk 0:00:50]} 30... Ne6 {[%clk 0:00:14.1]} 31. e5 {[%clk
0:00:46]} 31... dxe5 {[%clk 0:00:11.9]} 32. Qh7+ {[%clk 0:00:44.7]} 32... Kf8
{[%clk 0:00:12.2]} 33. dxe5 {[%clk 0:00:41.8]} 33... Nf4 {[%clk 0:00:11.2]} 34.
exf6 {[%clk 0:00:39.5]} 34... gxf6 {[%clk 0:00:07.2]} 35. Qh6+ {[%clk
0:00:38.3]} 35... Ke7 {[%clk 0:00:05.3]} 36. Rf2 {[%clk 0:00:36.3]} 36... Nxd3+
{[%clk 0:00:04]} 37. Rxd3 {[%clk 0:00:35.9]} 1-0

[Event "*** Titled Tuesday Blitz"]
[Site "Chess.com"]
[Date "2020.11.03"]
[Round "8"]
[White "Walter_White_Poland"]
[Black "xberli"]
[Result "0-1"]
[WhiteElo "2354"]
[BlackElo "2532"]
[TimeControl "180+1"]
[EndTime "11:32:07 PST"]
[Termination "xberli won on time"]

1. e4 {[%clk 0:03:00.9]} 1... c5 {[%clk 0:02:59.6]} 2. Nf3 {[%clk 0:03:00.3]}
2... d6 {[%clk 0:03:00.1]} 3. d4 {[%clk 0:03:00.3]} 3... cxd4 {[%clk 0:03:01]}
4. Nxd4 {[%clk 0:03:00.8]} 4... Nf6 {[%clk 0:03:01.7]} 5. Nc3 {[%clk 0:03:01]}
5... a6 {[%clk 0:03:02.4]} 6. Bg5 {[%clk 0:03:00.9]} 6... Nbd7 {[%clk
0:03:02.6]} 7. f4 {[%clk 0:03:00.7]} 7... Qb6 {[%clk 0:03:02.4]} 8. Qd2 {[%clk
0:02:14.8]} 8... e5 {[%clk 0:02:57.1]} 9. Nb3 {[%clk 0:01:43.3]} 9... Be7 {[%clk
0:02:38]} 10. O-O-O {[%clk 0:01:35]} 10... O-O {[%clk 0:02:36.3]} 11. Bc4 {[%clk
0:01:25.5]} 11... h6 {[%clk 0:02:05.1]} 12. h4 {[%clk 0:00:42.3]} 12... Re8
{[%clk 0:01:51.9]} 13. f5 {[%clk 0:00:40.7]} 13... Qc7 {[%clk 0:01:41]} 14. Bd5
{[%clk 0:00:34.7]} 14... Nb6 {[%clk 0:01:29.5]} 15. Bxf6 {[%clk 0:00:33.7]}
15... Bxf6 {[%clk 0:01:30.4]} 16. g4 {[%clk 0:00:33.3]} 16... Qd8 {[%clk
0:01:18.5]} 17. g5 {[%clk 0:00:27.5]} 17... hxg5 {[%clk 0:01:17]} 18. Rdg1
{[%clk 0:00:27.3]} 18... gxh4 {[%clk 0:01:13.2]} 19. Qh6 {[%clk 0:00:20.5]}
19... Kf8 {[%clk 0:01:08.2]} 20. Qh5 {[%clk 0:00:19.2]} 20... Be6 {[%clk
0:00:38]} 21. fxe6 {[%clk 0:00:13.1]} 21... fxe6 {[%clk 0:00:38.9]} 22. Qh8+
{[%clk 0:00:08]} 22... Kf7 {[%clk 0:00:33.8]} 23. Qh5+ {[%clk 0:00:07.9]} 23...
Kg8 {[%clk 0:00:25.1]} 24. Bxb7 {[%clk 0:00:08]} 24... Rb8 {[%clk 0:00:22.2]}
25. Bc6 {[%clk 0:00:08.2]} 25... Rf8 {[%clk 0:00:20.6]} 26. Qg6 {[%clk
0:00:08.1]} 26... Qe7 {[%clk 0:00:18.9]} 27. Rg4 {[%clk 0:00:06.6]} 27... Qf7
{[%clk 0:00:17.6]} 28. Qxg7+ {[%clk 0:00:06.3]} 28... Qxg7 {[%clk 0:00:16.5]}
29. Rxg7+ {[%clk 0:00:05]} 29... Kxg7 {[%clk 0:00:17.4]} 30. Rg1+ {[%clk
0:00:04.7]} 30... Kh6 {[%clk 0:00:17.4]} 31. Ne2 {[%clk 0:00:02.4]} 31... Bg5+
{[%clk 0:00:18.3]} 32. Kd1 {[%clk 0:00:02.2]} 32... Rf2 {[%clk 0:00:18.6]} 33.
Nd2 {[%clk 0:00:01]} 33... Rbf8 {[%clk 0:00:19]} 0-1

[Event "*** Titled Tuesday Blitz"]
[Site "Chess.com"]
[Date "2020.11.03"]
[Round "8"]
[White "cstevens1"]
[Black "BogdanDeac"]
[Result "0-1"]
[WhiteElo "2701"]
[BlackElo "2874"]
[TimeControl "180+1"]
[EndTime "11:32:08 PST"]
[Termination "BogdanDeac won by resignation"]

1. Nf3 {[%clk 0:03:00.9]} 1... d5 {[%clk 0:02:59.8]} 2. g3 {[%clk 0:03:01.2]}
2... Nf6 {[%clk 0:02:59.5]} 3. Bg2 {[%clk 0:03:01.7]} 3... e6 {[%clk 0:03:00.1]}
4. O-O {[%clk 0:03:02]} 4... Be7 {[%clk 0:03:01]} 5. d3 {[%clk 0:03:01.6]} 5...
O-O {[%clk 0:03:01.1]} 6. Nbd2 {[%clk 0:03:02.1]} 6... a5 {[%clk 0:03:00.8]} 7.
e4 {[%clk 0:03:02.5]} 7... a4 {[%clk 0:03:00.7]} 8. a3 {[%clk 0:03:02.6]} 8...
c5 {[%clk 0:03:00.7]} 9. Re1 {[%clk 0:03:01]} 9... Nc6 {[%clk 0:03:00.4]} 10. e5
{[%clk 0:02:59.4]} 10... Nd7 {[%clk 0:03:00.4]} 11. Nf1 {[%clk 0:03:00.1]} 11...
f6 {[%clk 0:02:58.5]} 12. exf6 {[%clk 0:02:56.7]} 12... Nxf6 {[%clk 0:02:58.8]}
13. h3 {[%clk 0:02:11.6]} 13... Bd6 {[%clk 0:02:54.5]} 14. N1h2 {[%clk
0:02:06.3]} 14... e5 {[%clk 0:02:51.7]} 15. Nh4 {[%clk 0:01:50]} 15... Be6
{[%clk 0:02:45]} 16. Ng4 {[%clk 0:01:47.2]} 16... Qd7 {[%clk 0:02:33.8]} 17.
Nxf6+ {[%clk 0:01:24.8]} 17... Rxf6 {[%clk 0:02:34.7]} 18. Bg5 {[%clk 0:01:18]}
18... Rf7 {[%clk 0:02:32.7]} 19. c4 {[%clk 0:01:18.3]} 19... dxc4 {[%clk
0:02:11]} 20. dxc4 {[%clk 0:01:19.2]} 20... Nd4 {[%clk 0:02:11.2]} 21. Be3
{[%clk 0:01:09.3]} 21... Bxh3 {[%clk 0:01:32.7]} 22. Bd5 {[%clk 0:00:52.3]}
22... Be6 {[%clk 0:01:28.9]} 23. Bxd4 {[%clk 0:00:46.5]} 23... cxd4 {[%clk
0:01:20.8]} 24. Bxe6 {[%clk 0:00:43.1]} 24... Qxe6 {[%clk 0:01:21.7]} 25. Qxd4
{[%clk 0:00:40.5]} 25... Raf8 {[%clk 0:01:21.8]} 26. Rad1 {[%clk 0:00:30.8]}
26... Bc7 {[%clk 0:00:45.9]} 27. Rd2 {[%clk 0:00:26.4]} 27... Qa6 {[%clk
0:00:23.9]} 28. Qe4 {[%clk 0:00:24.1]} 28... Ba5 {[%clk 0:00:22.1]} 29. Ree2
{[%clk 0:00:18]} 29... Bxd2 {[%clk 0:00:21.8]} 30. Rxd2 {[%clk 0:00:18.9]} 30...
Qb6 {[%clk 0:00:22]} 31. Qe2 {[%clk 0:00:15.6]} 31... e4 {[%clk 0:00:18.4]} 32.
Qe1 {[%clk 0:00:12.5]} 32... e3 {[%clk 0:00:16.3]} 33. Qxe3 {[%clk 0:00:12]}
33... Qxe3 {[%clk 0:00:16.2]} 34. fxe3 {[%clk 0:00:12.9]} 34... Rf1+ {[%clk
0:00:15.7]} 35. Kg2 {[%clk 0:00:13.1]} 35... g5 {[%clk 0:00:15.1]} 0-1

[Event "*** Titled Tuesday Blitz"]
[Site "Chess.com"]
[Date "2020.11.03"]
[Round "8"]
[White "Kristina_Kim"]
[Black "Maxim_e2e4"]
[Result "1-0"]
[WhiteElo "2197"]
[BlackElo "2351"]
[TimeControl "180+1"]
[EndTime "11:32:11 PST"]
[Termination "Kristina_Kim won on time"]

1. c4 {[%clk 0:03:00.9]} 1... e5 {[%clk 0:02:54.6]} 2. g3 {[%clk 0:03:00.9]}
2... Nc6 {[%clk 0:02:52.3]} 3. Bg2 {[%clk 0:03:00.7]} 3... Bc5 {[%clk
0:02:51.6]} 4. Nf3 {[%clk 0:02:44.4]} 4... d6 {[%clk 0:02:50.8]} 5. O-O {[%clk
0:02:43.5]} 5... h5 {[%clk 0:02:44.2]} 6. e3 {[%clk 0:02:36.8]} 6... Bg4 {[%clk
0:02:35.3]} 7. h3 {[%clk 0:02:31]} 7... Bxf3 {[%clk 0:02:34.9]} 8. Bxf3 {[%clk
0:02:31.9]} 8... f5 {[%clk 0:02:25]} 9. Bxh5+ {[%clk 0:02:21.5]} 9... Kf8 {[%clk
0:02:24.5]} 10. d4 {[%clk 0:01:25.2]} 10... exd4 {[%clk 0:02:16.2]} 11. exd4
{[%clk 0:01:26.1]} 11... Bxd4 {[%clk 0:02:16]} 12. h4 {[%clk 0:01:22.5]} 12...
Nge7 {[%clk 0:01:20.3]} 13. Nc3 {[%clk 0:01:13.5]} 13... g6 {[%clk 0:01:19.8]}
14. Bf3 {[%clk 0:01:13]} 14... Be5 {[%clk 0:00:57]} 15. Bg5 {[%clk 0:00:59.6]}
15... Qd7 {[%clk 0:00:56.6]} 16. Re1 {[%clk 0:00:50.2]} 16... Kg7 {[%clk
0:00:53.3]} 17. Nd5 {[%clk 0:00:43.8]} 17... Nxd5 {[%clk 0:00:51.9]} 18. Bxd5
{[%clk 0:00:40.1]} 18... Rhe8 {[%clk 0:00:40.8]} 19. Qd2 {[%clk 0:00:34.7]}
19... Rab8 {[%clk 0:00:23.7]} 20. Kg2 {[%clk 0:00:32.1]} 20... Ne7 {[%clk
0:00:15.5]} 21. Bf3 {[%clk 0:00:22.7]} 21... Ng8 {[%clk 0:00:15.2]} 22. Rh1
{[%clk 0:00:19.1]} 22... Nf6 {[%clk 0:00:14.4]} 23. h5 {[%clk 0:00:17.8]} 23...
gxh5 {[%clk 0:00:11.5]} 24. Bxf6+ {[%clk 0:00:14.9]} 24... Bxf6 {[%clk
0:00:10.2]} 25. Rxh5 {[%clk 0:00:15.3]} 25... Rh8 {[%clk 0:00:09.9]} 26. Rah1
{[%clk 0:00:15.5]} 26... Qe6 {[%clk 0:00:07.6]} 27. Bd5 {[%clk 0:00:09.6]} 27...
Qe5 {[%clk 0:00:07]} 28. Rxh8 {[%clk 0:00:09.2]} 28... Rxh8 {[%clk 0:00:05.4]}
29. Rxh8 {[%clk 0:00:09.5]} 1-0

[Event "*** Titled Tuesday Blitz"]
[Site "Chess.com"]
[Date "2020.11.03"]
[Round "8"]
[White "AryanTari"]
[Black "TorFredrikKaasen"]
[Result "0-1"]
[WhiteElo "2877"]
[BlackElo "2720"]
[TimeControl "180+1"]
[EndTime "11:32:12 PST"]
[Termination "TorFredrikKaasen won by resignation"]

1. b3 {[%clk 0:03:00.9]} 1... d5 {[%clk 0:02:59]} 2. Bb2 {[%clk 0:03:00.3]} 2...
Bf5 {[%clk 0:02:57.3]} 3. e3 {[%clk 0:03:00.2]} 3... Nf6 {[%clk 0:02:54.6]} 4.
Nf3 {[%clk 0:03:00]} 4... e6 {[%clk 0:02:53.2]} 5. d4 {[%clk 0:03:00]} 5... h6
{[%clk 0:02:53.1]} 6. Bd3 {[%clk 0:02:59.7]} 6... Bxd3 {[%clk 0:02:52.4]} 7.
Qxd3 {[%clk 0:03:00.6]} 7... Be7 {[%clk 0:02:52.4]} 8. Qb5+ {[%clk 0:03:00.3]}
8... Nbd7 {[%clk 0:02:42.8]} 9. Qxb7 {[%clk 0:02:58.8]} 9... O-O {[%clk
0:02:42.8]} 10. Qa6 {[%clk 0:02:54.4]} 10... c5 {[%clk 0:02:40.6]} 11. O-O
{[%clk 0:02:47.9]} 11... c4 {[%clk 0:02:36.6]} 12. bxc4 {[%clk 0:02:40.5]} 12...
Rb8 {[%clk 0:02:31.4]} 13. Ba3 {[%clk 0:02:40.2]} 13... dxc4 {[%clk 0:01:14.6]}
14. Bxe7 {[%clk 0:02:06]} 14... Qxe7 {[%clk 0:01:15.5]} 15. Qxc4 {[%clk
0:02:06.2]} 15... Rfc8 {[%clk 0:01:09.2]} 16. Qd3 {[%clk 0:02:06.4]} 16... e5
{[%clk 0:01:07.2]} 17. Nfd2 {[%clk 0:01:31.6]} 17... exd4 {[%clk 0:01:03.5]} 18.
exd4 {[%clk 0:01:29.1]} 18... Nd5 {[%clk 0:01:03.5]} 19. c4 {[%clk 0:01:00.3]}
19... Nf4 {[%clk 0:01:00.9]} 20. Qe3 {[%clk 0:01:00.1]} 20... Ne2+ {[%clk
0:00:52.8]} 21. Kh1 {[%clk 0:00:58.6]} 21... Qxe3 {[%clk 0:00:49.5]} 22. fxe3
{[%clk 0:00:58.8]} 22... Re8 {[%clk 0:00:50.4]} 23. Nf3 {[%clk 0:00:35.2]} 23...
Rxe3 {[%clk 0:00:46.2]} 24. Nbd2 {[%clk 0:00:35.9]} 24... Rbe8 {[%clk
0:00:36.8]} 25. Rab1 {[%clk 0:00:29.8]} 25... Rc3 {[%clk 0:00:30.5]} 26. Rb7
{[%clk 0:00:27.9]} 26... Nf6 {[%clk 0:00:29.1]} 27. Rxa7 {[%clk 0:00:20.5]}
27... Rd3 {[%clk 0:00:24.7]} 28. Re1 {[%clk 0:00:17.1]} 28... Rxd2 {[%clk
0:00:21.4]} 29. Nxd2 {[%clk 0:00:15]} 29... Ng3+ {[%clk 0:00:21.9]} 30. hxg3
{[%clk 0:00:15.9]} 30... Rxe1+ {[%clk 0:00:22.1]} 31. Kh2 {[%clk 0:00:16.6]}
31... Ng4+ {[%clk 0:00:05.9]} 32. Kh3 {[%clk 0:00:17.1]} 32... Nf2+ {[%clk
0:00:06.1]} 0-1

[Event "*** Titled Tuesday Blitz"]
[Site "Chess.com"]
[Date "2020.11.03"]
[Round "8"]
[White "tteshan"]
[Black "Michaelson_11"]
[Result "1-0"]
[WhiteElo "2356"]
[BlackElo "2147"]
[TimeControl "180+1"]
[EndTime "11:32:12 PST"]
[Termination "tteshan won by checkmate"]

1. e4 {[%clk 0:03:00.9]} 1... c5 {[%clk 0:02:59.5]} 2. c3 {[%clk 0:02:59.5]}
2... Nf6 {[%clk 0:02:58.4]} 3. e5 {[%clk 0:02:59.7]} 3... Nd5 {[%clk 0:02:58.9]}
4. Nf3 {[%clk 0:02:58.6]} 4... Nc6 {[%clk 0:02:58.3]} 5. d4 {[%clk 0:02:58.8]}
5... cxd4 {[%clk 0:02:58.1]} 6. cxd4 {[%clk 0:02:59]} 6... e6 {[%clk 0:02:58.7]}
7. Bc4 {[%clk 0:02:58.3]} 7... d6 {[%clk 0:02:57.8]} 8. Qe2 {[%clk 0:02:58.3]}
8... Nb6 {[%clk 0:02:43]} 9. Bb5 {[%clk 0:02:55.8]} 9... Bd7 {[%clk 0:02:32.7]}
10. O-O {[%clk 0:02:55.3]} 10... a6 {[%clk 0:02:24.4]} 11. Bxc6 {[%clk
0:02:48.4]} 11... Bxc6 {[%clk 0:02:25.3]} 12. Nc3 {[%clk 0:02:48]} 12... Ke7
{[%clk 0:02:23.3]} 13. Bg5+ {[%clk 0:02:30.6]} 13... f6 {[%clk 0:02:21.3]} 14.
exf6+ {[%clk 0:02:31.1]} 14... gxf6 {[%clk 0:02:22.2]} 15. Bh4 {[%clk
0:02:31.5]} 15... Bg7 {[%clk 0:02:16.1]} 16. Rfe1 {[%clk 0:02:28.7]} 16... Qd7
{[%clk 0:02:13.6]} 17. Rad1 {[%clk 0:02:16.7]} 17... Kf7 {[%clk 0:01:57.6]} 18.
Qd3 {[%clk 0:02:06.7]} 18... Nd5 {[%clk 0:01:45.1]} 19. Ne4 {[%clk 0:01:59.4]}
19... Nf4 {[%clk 0:01:38.6]} 20. Qe3 {[%clk 0:01:50.8]} 20... Ng6 {[%clk
0:01:28.4]} 21. Bg3 {[%clk 0:01:34.4]} 21... h5 {[%clk 0:01:16.5]} 22. Nxd6+
{[%clk 0:01:31.9]} 22... Kf8 {[%clk 0:01:06.5]} 23. h3 {[%clk 0:01:23]} 23... h4
{[%clk 0:00:54.9]} 24. Bh2 {[%clk 0:01:22.1]} 24... Bd5 {[%clk 0:00:53.1]} 25.
Qa3 {[%clk 0:01:13.4]} 25... Kg8 {[%clk 0:00:50.3]} 26. Rc1 {[%clk 0:01:08.5]}
26... Bf8 {[%clk 0:00:37.7]} 27. Qd3 {[%clk 0:00:59.2]} 27... Rh6 {[%clk
0:00:26.4]} 28. Ne4 {[%clk 0:00:56.8]} 28... Qg7 {[%clk 0:00:22.4]} 29. Rc7
{[%clk 0:00:54]} 29... Ne7 {[%clk 0:00:20.4]} 30. Nc3 {[%clk 0:00:45.1]} 30...
Bxf3 {[%clk 0:00:14.5]} 31. Qxf3 {[%clk 0:00:44.8]} 31... Rg6 {[%clk 0:00:12.7]}
32. Rxe6 {[%clk 0:00:42.5]} 32... Rc8 {[%clk 0:00:11.8]} 33. Rexe7 {[%clk
0:00:37.7]} 33... Rxc7 {[%clk 0:00:10.9]} 34. Rxg7+ {[%clk 0:00:37]} 34... Rcxg7
{[%clk 0:00:11.8]} 35. Nd5 {[%clk 0:00:30.5]} 35... f5 {[%clk 0:00:09]} 36. Be5
{[%clk 0:00:29]} 36... Rf7 {[%clk 0:00:09.3]} 37. Qh5 {[%clk 0:00:26.4]} 37...
Re6 {[%clk 0:00:04.6]} 38. Qh8# {[%clk 0:00:25.5]} 1-0

[Event "*** Titled Tuesday Blitz"]
[Site "Chess.com"]
[Date "2020.11.03"]
[Round "8"]
[White "MIJuanReyesRosa"]
[Black "Vi_Los"]
[Result "0-1"]
[WhiteElo "2126"]
[BlackElo "2324"]
[TimeControl "180+1"]
[EndTime "11:32:12 PST"]
[Termination "Vi_Los won on time"]

1. d4 {[%clk 0:02:57.6]} 1... Nf6 {[%clk 0:02:57.7]} 2. Nf3 {[%clk 0:02:57]}
2... d5 {[%clk 0:02:57.1]} 3. c4 {[%clk 0:02:57]} 3... e6 {[%clk 0:02:56.9]} 4.
Nc3 {[%clk 0:02:57.2]} 4... Bb4 {[%clk 0:02:56.8]} 5. cxd5 {[%clk 0:02:55.8]}
5... exd5 {[%clk 0:02:56.3]} 6. Bg5 {[%clk 0:02:54.5]} 6... h6 {[%clk
0:02:56.2]} 7. Bxf6 {[%clk 0:02:53.8]} 7... Qxf6 {[%clk 0:02:55.4]} 8. e3 {[%clk
0:02:53.2]} 8... O-O {[%clk 0:02:52.6]} 9. Be2 {[%clk 0:02:51.2]} 9... c5 {[%clk
0:02:42.5]} 10. O-O {[%clk 0:02:45.2]} 10... Be6 {[%clk 0:02:34.7]} 11. Qb3
{[%clk 0:02:40.1]} 11... Bxc3 {[%clk 0:02:14.5]} 12. bxc3 {[%clk 0:02:35.4]}
12... b6 {[%clk 0:02:09.3]} 13. Ne5 {[%clk 0:02:27.9]} 13... Qe7 {[%clk
0:01:45.9]} 14. a4 {[%clk 0:02:16.3]} 14... Nd7 {[%clk 0:01:20.9]} 15. Nxd7
{[%clk 0:01:56.5]} 15... Qxd7 {[%clk 0:01:21.8]} 16. a5 {[%clk 0:01:53.3]} 16...
Rab8 {[%clk 0:01:13.8]} 17. axb6 {[%clk 0:01:43.8]} 17... axb6 {[%clk
0:01:13.7]} 18. Qa4 {[%clk 0:01:14.5]} 18... Qd6 {[%clk 0:01:00.6]} 19. Rfb1
{[%clk 0:01:08.7]} 19... f5 {[%clk 0:00:49.5]} 20. Bf3 {[%clk 0:01:07.3]} 20...
f4 {[%clk 0:00:48.3]} 21. Qa6 {[%clk 0:00:45.3]} 21... fxe3 {[%clk 0:00:47.1]}
22. fxe3 {[%clk 0:00:45.2]} 22... Qe7 {[%clk 0:00:43.9]} 23. Qe2 {[%clk
0:00:25.7]} 23... c4 {[%clk 0:00:35.9]} 24. Ra6 {[%clk 0:00:18.9]} 24... Qc7
{[%clk 0:00:33]} 25. Bg4 {[%clk 0:00:13.9]} 25... Bf7 {[%clk 0:00:31]} 26. Qe1
{[%clk 0:00:09.1]} 26... b5 {[%clk 0:00:29.4]} 27. Qh4 {[%clk 0:00:08]} 27...
Rb6 {[%clk 0:00:28.3]} 28. Rxb6 {[%clk 0:00:07.3]} 28... Qxb6 {[%clk 0:00:28.6]}
29. Bf3 {[%clk 0:00:06.1]} 29... Qe6 {[%clk 0:00:27.9]} 30. Qg3 {[%clk
0:00:04.8]} 30... Qxe3+ {[%clk 0:00:27.3]} 31. Kh1 {[%clk 0:00:04.7]} 31... Qxc3
{[%clk 0:00:27.4]} 32. Rf1 {[%clk 0:00:02.6]} 32... Qxd4 {[%clk 0:00:26.4]} 0-1

[Event "*** Titled Tuesday Blitz"]
[Site "Chess.com"]
[Date "2020.11.03"]
[Round "8"]
[White "Vesper2018"]
[Black "SanchezKelvin"]
[Result "1-0"]
[WhiteElo "2620"]
[BlackElo "2427"]
[TimeControl "180+1"]
[EndTime "11:32:16 PST"]
[Termination "Vesper2018 won by checkmate"]

1. e4 {[%clk 0:03:00.9]} 1... c5 {[%clk 0:02:58.3]} 2. Nc3 {[%clk 0:03:00.4]}
2... Nc6 {[%clk 0:02:58.1]} 3. Bb5 {[%clk 0:02:59]} 3... Nd4 {[%clk 0:02:57.1]}
4. Bc4 {[%clk 0:02:56.1]} 4... g6 {[%clk 0:02:56]} 5. Nf3 {[%clk 0:02:56.4]}
5... Bg7 {[%clk 0:02:55.9]} 6. Nxd4 {[%clk 0:02:55.6]} 6... cxd4 {[%clk
0:02:55.6]} 7. Qf3 {[%clk 0:02:55.6]} 7... e6 {[%clk 0:02:44.4]} 8. Ne2 {[%clk
0:02:50.2]} 8... Ne7 {[%clk 0:02:43.6]} 9. d3 {[%clk 0:02:47.1]} 9... O-O {[%clk
0:02:43]} 10. O-O {[%clk 0:02:46.2]} 10... Rb8 {[%clk 0:02:41.7]} 11. Qg3 {[%clk
0:02:33.5]} 11... d6 {[%clk 0:02:37.3]} 12. Qh4 {[%clk 0:02:21.6]} 12... b5
{[%clk 0:02:33.6]} 13. Bb3 {[%clk 0:02:21.9]} 13... Nc6 {[%clk 0:02:24.1]} 14.
Bg5 {[%clk 0:02:21.5]} 14... f6 {[%clk 0:02:17]} 15. Bh6 {[%clk 0:02:21.7]}
15... g5 {[%clk 0:02:16.7]} 16. Qh5 {[%clk 0:02:21.6]} 16... Qe8 {[%clk
0:02:12.7]} 17. Qh3 {[%clk 0:02:17.4]} 17... a5 {[%clk 0:02:06.7]} 18. a4 {[%clk
0:02:09.4]} 18... bxa4 {[%clk 0:01:55]} 19. Bxg7 {[%clk 0:01:56.3]} 19... Kxg7
{[%clk 0:01:48.7]} 20. Bxa4 {[%clk 0:01:51.6]} 20... e5 {[%clk 0:01:44.6]} 21.
Qg3 {[%clk 0:01:51.7]} 21... Kh8 {[%clk 0:01:27.7]} 22. Bb3 {[%clk 0:01:44.4]}
22... Be6 {[%clk 0:01:22.7]} 23. Ba4 {[%clk 0:01:32.6]} 23... Rxb2 {[%clk
0:01:17.9]} 24. Nxd4 {[%clk 0:01:05.8]} 24... exd4 {[%clk 0:01:08.5]} 25. Qxd6
{[%clk 0:01:05.1]} 25... Bd7 {[%clk 0:00:43]} 26. Bxc6 {[%clk 0:01:02.5]} 26...
Bxc6 {[%clk 0:00:42.4]} 27. Rxa5 {[%clk 0:01:02.5]} 27... Qd8 {[%clk 0:00:16.6]}
28. Qa3 {[%clk 0:00:42]} 28... Rb8 {[%clk 0:00:11.5]} 29. Ra1 {[%clk 0:00:34.9]}
29... Rf7 {[%clk 0:00:10.5]} 30. h3 {[%clk 0:00:27.7]} 30... Rfb7 {[%clk
0:00:10]} 31. Kh2 {[%clk 0:00:22.9]} 31... Qc7+ {[%clk 0:00:09.5]} 32. g3 {[%clk
0:00:23.1]} 32... Rb2 {[%clk 0:00:08.1]} 33. Qc5 {[%clk 0:00:19.6]} 33... Qb6
{[%clk 0:00:06.2]} 34. Qe7 {[%clk 0:00:18.7]} 34... Be8 {[%clk 0:00:03.3]} 35.
Ra6 {[%clk 0:00:17.8]} 35... Qd8 {[%clk 0:00:01.8]} 36. Qf8# {[%clk 0:00:17.6]}
1-0